fUST/lending_fUST_20250713
["ID","MTS","AMOUNT","RATE_DAILY","PERIOD"]
[371525226,1752337873245,-460.0,0.00019452,2]
[371525227,1752337873254,-460.0,0.00019452,2]
[371525228,1752337873264,-460.0,0.00019452,2]
[371525229,1752337873273,-460.0,0.00019452,2]
[371525230,1752337873286,-460.92,0.00019452,2]
[371525231,1752337873295,-460.0,0.00019452,2]
[371525232,1752337873306,-754.1,0.00019452,2]
[371525233,1752337873315,-460.0,0.00019452,2]
[371525234,1752337873327,-460.0,0.00019452,2]
[371525235,1752337873336,-874.82,0.00019452,2]
[371525236,1752337873347,-460.0,0.00019452,2]
[371525237,1752337873359,-460.0,0.00019452,2]
[371525238,1752337873369,-460.0,0.00019452,2]
[371525239,1752337873379,-934.28,0.00019452,2]
[371525240,1752337873389,-460.0,0.00019452,2]
[371525241,1752337873399,-446.5102063,0.00019452,2]
[371525242,1752337873408,-504.26,0.00019452,2]
[371525243,1752337873418,-460.0,0.00019452,2]
[371525244,1752337873429,-460.0,0.00019452,2]
[371525245,1752337873439,-460.0,0.00019452,2]
[371525246,1752337873448,-460.0,0.00019452,2]
[371525247,1752337873458,-588.15,0.00019452,2]
[371525248,1752337873468,-460.0,0.00019452,2]
[371525249,1752337873478,-992.64,0.00019452,2]
[371525250,1752337873487,-460.0,0.00019452,2]
[371525251,1752337873496,-460.0,0.00019452,2]
[371525252,1752337873506,-460.0,0.00019452,2]
[371525253,1752337873515,-1839.91,0.00019452,2]
[371525254,1752337873524,-460.0,0.00019452,2]
[371525255,1752337873533,-460.0,0.00019452,2]
[371525256,1752337873543,-460.0,0.00019452,2]
[371525257,1752337873552,-927.9,0.00019452,2]
[371525258,1752337873561,-151.0,0.00019452,2]
[371525259,1752337873571,-151.0,0.00019452,2]
[371525260,1752337873581,-526.46,0.00019452,2]
[371525261,1752337873590,-544.52,0.00019452,2]
[371525262,1752337873600,-460.0,0.00019452,2]
[371525263,1752337873610,-1650.17,0.00019452,2]
[371525264,1752337873620,-460.0,0.00019452,2]
[371525265,1752337873629,-1069.15,0.00019452,2]
[371525266,1752337873638,-460.0,0.00019452,2]
[371525267,1752337873648,-151.0,0.00019452,2]
[371525268,1752337873657,-578.23,0.00019452,2]
[371525269,1752337873667,-3354.98,0.00019452,2]
[371525270,1752337873676,-460.0,0.00019452,2]
[371525271,1752337873688,-818.44,0.00019452,2]
[371525272,1752337873698,-998.44,0.00019452,2]
[371525273,1752337873708,-4494.11,0.00019452,2]
[371525274,1752337873718,-2099.31,0.00019452,2]
[371525275,1752337873727,-460.0,0.00019452,2]
[371525276,1752337873737,-1003.4,0.00019452,2]
[371525277,1752337873747,-460.0,0.00019452,2]
[371525278,1752337873756,-460.0,0.00019452,2]
[371525279,1752337873766,-460.0,0.00019452,2]
[371525280,1752337873775,-485.45,0.00019452,2]
[371525281,1752337873785,-515.64,0.00019452,2]
[371525282,1752337873794,-1931.86,0.00019452,2]
[371525283,1752337873803,-460.0,0.00019452,2]
[371525284,1752337873813,-460.0,0.00019452,2]
[371525285,1752337873823,-460.0,0.00019452,2]
[371525286,1752337873832,-527.530373,0.00019452,2]
[371525287,1752337873841,-527.530373,0.00019452,2]
[371525288,1752337873851,-460.0,0.00019452,2]
[371525289,1752337873860,-460.0,0.00019452,2]
[371525290,1752337873870,-3383.5,0.00019452,2]
[371525291,1752337873880,-470.33,0.00019452,2]
[371525292,1752337873890,-460.0,0.00019452,2]
[371525293,1752337873900,-309.43847576,0.00019452,2]
[371525294,1752337873909,-460.0,0.00019452,2]
[371525295,1752337873921,-253.510333,0.00019452,2]
[371525296,1752337873930,-151.0,0.00019452,2]
[371525297,1752337873939,-253.510333,0.00019452,2]
[371525298,1752337873950,-151.0,0.00019452,2]
[371525299,1752337873960,-1827.3,0.00019452,2]
[371525300,1752337873969,-804.37,0.00019452,2]
[371525301,1752337873979,-2119.51,0.00019452,2]
[371525302,1752337873989,-460.0,0.00019452,2]
[371525303,1752337873999,-690.3,0.00019452,2]
[371525304,1752337874009,-460.0,0.00019452,2]
[371525305,1752337874019,-460.0,0.00019452,2]
[371525306,1752337874028,-460.0,0.00019452,2]
[371525307,1752337874038,-717.39,0.00019452,2]
[371525308,1752337874047,-834.1,0.00019452,2]
[371525309,1752337874057,-460.0,0.00019452,2]
[371525310,1752337874066,-677.77,0.00019452,2]
[371525311,1752337874075,-460.0,0.00019452,2]
[371525312,1752337874191,-1548.29,0.00019452,2]
[371525313,1752337874200,-638.57,0.00019452,2]
[371525314,1752337874209,-151.0,0.00019452,2]
[371525315,1752337874219,-460.0,0.00019452,2]
[371525316,1752337874228,-1037.74,0.00019452,2]
[371525317,1752337874237,-460.0,0.00019452,2]
[371525318,1752337874246,-502.37,0.00019452,2]
[371525319,1752337874255,-633.77,0.00019452,2]
[371525320,1752337874265,-504.46,0.00019452,2]
[371525321,1752337874274,-1078.9,0.00019452,2]
[371525322,1752337874286,-535.14,0.00019452,2]
[371525323,1752337874296,-5267.62,0.00019452,2]
[371525324,1752337874305,-460.0,0.00019452,2]
[371525325,1752337874315,-460.0,0.00019452,2]
[371525326,1752337874326,-460.0,0.00019452,2]
[371525327,1752337874335,-460.0,0.00019452,2]
[371525328,1752337874345,-460.0,0.00019452,2]
[371525329,1752337874355,-1776.53,0.00019452,2]
[371525330,1752337874365,-575.57290686,0.00019452,2]
[371525331,1752337874374,-460.0,0.00019452,2]
[371525332,1752337874383,-476.19,0.00019452,2]
[371525333,1752337874392,-513.92,0.00019452,2]
[371525334,1752337874402,-1202.71,0.00019452,2]
[371525335,1752337874411,-3134.5,0.00019452,2]
[371525336,1752337874421,-559.61,0.00019452,2]
[371525337,1752337874430,-460.0,0.00019452,2]
[371525338,1752337874440,-483.57,0.00019452,2]
[371525339,1752337874450,-303.49161028,0.00019467,2]
[371525340,1752337874459,-587.0,0.00019514,2]
[371525341,1752337874470,-2654.34677328,0.0001959,2]
[371525342,1752337874480,-303.49161028,0.00019656,2]
[371525343,1752337874490,-2500.0,0.00019712,2]
[371525344,1752337874500,-2500.0,0.00019712,2]
[371525345,1752337874510,-460.0,0.00019726,2]
[371525346,1752337874519,-151.0,0.00019726,2]
[371525347,1752337874528,-460.0,0.00019726,2]
[371525348,1752337874538,-460.0,0.00019726,2]
[371525349,1752337874547,-535.97,0.00019726,2]
[371525350,1752337874557,-460.0,0.00019726,2]
[371525351,1752337874567,-460.0,0.00019726,2]
[371525352,1752337874576,-544.05,0.00019726,2]
[371525353,1752337874585,-460.0,0.00019726,2]
[371525354,1752337874595,-460.0,0.00019726,2]
[371525355,1752337874605,-274.56584994,0.00019726,2]
[371525356,1752337874614,-460.0,0.00019726,2]
[371525357,1752337874624,-460.92,0.00019726,2]
[371525358,1752337874634,-460.0,0.00019726,2]
[371525359,1752337874644,-754.1,0.00019726,2]
[371525360,1752337874654,-151.0,0.00019726,2]
[371525361,1752337874663,-151.0,0.00019726,2]
[371525362,1752337874674,-464.42978,0.00019726,2]
[371525363,1752337874683,-460.0,0.00019726,2]
[371525364,1752337874693,-464.42978,0.00019726,2]
[371525365,1752337874703,-460.0,0.00019726,2]
[371525366,1752337874713,-874.82,0.00019726,2]
[371525367,1752337874723,-460.0,0.00019726,2]
[371525368,1752337874733,-460.0,0.00019726,2]
[371525369,1752337874743,-460.0,0.00019726,2]
[371525370,1752337874753,-934.28,0.00019726,2]
[371525371,1752337874763,-460.0,0.00019726,2]
[371525372,1752337874773,-504.26,0.00019726,2]
[371525373,1752337874782,-460.0,0.00019726,2]
[371525374,1752337874792,-460.0,0.00019726,2]
[371525375,1752337874802,-266.62463028,0.00019726,2]
[371525376,1752337874811,-588.15,0.00019726,2]
[371525377,1752337874821,-460.0,0.00019726,2]
[371525378,1752337874831,-992.64,0.00019726,2]
[371525379,1752337874840,-460.0,0.00019726,2]
[371525380,1752337874851,-235.001874,0.00019726,2]
[371525381,1752337874860,-151.0,0.00019726,2]
[371525382,1752337874870,-460.0,0.00019726,2]
[371525383,1752337874880,-235.001874,0.00019726,2]
[371525384,1752337874890,-151.0,0.00019726,2]
[371525385,1752337874900,-460.0,0.00019726,2]
[371525386,1752337874910,-151.0,0.00019726,2]
[371525387,1752337874920,-1839.91,0.00019726,2]
[371525388,1752337874929,-460.0,0.00019726,2]
[371525389,1752337874940,-460.0,0.00019726,2]
[371525390,1752337874949,-927.9,0.00019726,2]
[371525391,1752337874959,-526.46,0.00019726,2]
[371525392,1752337874968,-1650.17,0.00019726,2]
[371525393,1752337874977,-460.0,0.00019726,2]
[371525394,1752337874987,-1069.15,0.00019726,2]
[371525395,1752337874996,-460.0,0.00019726,2]
[371525396,1752337875006,-578.23,0.00019726,2]
[371525397,1752337875015,-3354.98,0.00019726,2]
[371525398,1752337875025,-460.0,0.00019726,2]
[371525399,1752337875034,-818.44,0.00019726,2]
[371525400,1752337875043,-998.44,0.00019726,2]
[371525401,1752337875053,-4494.11,0.00019726,2]
[371525402,1752337875062,-2099.31,0.00019726,2]
[371525403,1752337875072,-460.0,0.00019726,2]
[371525404,1752337875081,-1003.4,0.00019726,2]
[371525405,1752337875091,-237.77885004,0.00019726,2]
[371525406,1752337875100,-451.58564027,0.00019726,2]
[371525407,1752337875111,-460.0,0.00019726,2]
[371525408,1752337875122,-485.45,0.00019726,2]
[371525409,1752337875131,-515.64,0.00019726,2]
[371525410,1752337875141,-1931.86,0.00019726,2]
[371525411,1752337875151,-460.0,0.00019726,2]
[371525412,1752337875161,-460.0,0.00019726,2]
[371525413,1752337875171,-460.0,0.00019726,2]
[371525414,1752337875182,-460.0,0.00019726,2]
[371525415,1752337875192,-3383.5,0.00019726,2]
[371525416,1752337875203,-470.33,0.00019726,2]
[371525417,1752337875213,-460.0,0.00019726,2]
[371525418,1752337875222,-460.0,0.00019726,2]
[371525419,1752337875232,-1827.3,0.00019726,2]
[371525420,1752337875241,-804.37,0.00019726,2]
[371525421,1752337875251,-2119.51,0.00019726,2]
[371525422,1752337875260,-460.0,0.00019726,2]
[371525423,1752337875270,-690.3,0.00019726,2]
[371525424,1752337875281,-460.0,0.00019726,2]
[371525425,1752337875291,-460.0,0.00019726,2]
[371525426,1752337875301,-460.0,0.00019726,2]
[371525427,1752337875311,-717.39,0.00019726,2]
[371525428,1752337875321,-834.1,0.00019726,2]
[371525429,1752337875330,-677.77,0.00019726,2]
[371525430,1752337875339,-460.0,0.00019726,2]
[371525431,1752337875350,-1548.29,0.00019726,2]
[371525432,1752337875360,-638.57,0.00019726,2]
[371525433,1752337875369,-460.0,0.00019726,2]
[371525434,1752337875377,-1037.74,0.00019726,2]
[371525435,1752337875387,-502.37,0.00019726,2]
[371525436,1752337875396,-633.77,0.00019726,2]
[371525437,1752337875406,-504.46,0.00019726,2]
[371525438,1752337875416,-1078.9,0.00019726,2]
[371525439,1752337875426,-535.14,0.00019726,2]
[371525440,1752337875436,-5267.62,0.00019726,2]
[371525441,1752337875447,-460.0,0.00019726,2]
[371525442,1752337875456,-460.0,0.00019726,2]
[371525443,1752337875466,-460.0,0.00019726,2]
[371525444,1752337875476,-460.0,0.00019726,2]
[371525445,1752337875486,-1776.53,0.00019726,2]
[371525446,1752337875495,-460.0,0.00019726,2]
[371525447,1752337875504,-476.19,0.00019726,2]
[371525448,1752337875514,-1202.71,0.00019726,2]
[371525449,1752337875524,-3134.5,0.00019726,2]
[371525450,1752337875533,-559.61,0.00019726,2]
[371525451,1752337875543,-460.0,0.00019726,2]
[371525452,1752337875552,-483.57,0.00019726,2]
[371525453,1752337875561,-151.0,0.00019831,2]
[371525454,1752337875571,-151.0,0.00019831,2]
[371525455,1752337875580,-305.267491,0.00019831,2]
[371525456,1752337875590,-305.267491,0.00019831,2]
[371525457,1752337875599,-2654.34677328,0.00019831,2]
[371525458,1752337875610,-312.66,0.00019843,2]
[371525459,1752337875619,-455.23741542,0.00019845,4]
[371525460,1752337875628,-207.4,0.00019899,2]
[371525461,1752337875638,-165.0,0.00019899,2]
[371525462,1752337875647,-151.0,0.00019899,2]
[371525463,1752337875656,-151.0,0.00019899,2]
[371525464,1752337875666,-151.0,0.00019899,2]
[371525465,1752337875675,-151.0,0.00019899,2]
[371525466,1752337875685,-151.0,0.00019899,2]
[371525467,1752337875695,-151.0,0.00019899,2]
[371525468,1752337875705,-151.0,0.00019899,2]
[371525469,1752337875715,-151.0,0.00019899,2]
[371525470,1752337875725,-151.0,0.00019899,2]
[371525471,1752337875735,-151.0,0.00019899,2]
[371525472,1752337875746,-151.0,0.00019899,2]
[371525473,1752337875756,-828.17587675,0.00019923,2]
[371525474,1752337875767,-1500.0,0.00019998,2]
[371525475,1752337875776,-90258.0,0.0002,2]
[371525476,1752337875785,-228.54568651,0.0002,2]
[371525477,1752337875794,-460.0,0.0002,2]
[371525478,1752337875803,-460.0,0.0002,2]
[371525479,1752337875813,-535.97,0.0002,2]
[371525480,1752337875823,-460.0,0.0002,2]
[371525481,1752337875833,-460.0,0.0002,2]
[371525482,1752337875842,-544.05,0.0002,2]
[371525483,1752337875851,-198.61,0.0002,2]
[371525484,1752337875861,-460.0,0.0002,2]
[371525485,1752337875870,-151.0,0.0002,2]
[371525486,1752337875880,-460.0,0.0002,2]
[371525487,1752337875890,-460.92,0.0002,2]
[371525488,1752337875900,-151.0,0.0002,2]
[371525489,1752337875910,-153.36,0.0002,2]
[371525490,1752337875920,-754.1,0.0002,2]
[371525491,1752337875930,-151.0,0.0002,2]
[371525492,1752337875940,-151.0,0.0002,2]
[371525493,1752337875950,-151.0,0.0002,2]
[371525494,1752337875960,-151.0,0.0002,2]
[371525495,1752337875970,-460.0,0.0002,2]
[371525496,1752337875980,-460.0,0.0002,2]
[371525497,1752337876084,-874.82,0.0002,2]
[371525498,1752337876093,-460.0,0.0002,2]
[371525499,1752337876103,-460.0,0.0002,2]
[371525500,1752337876112,-934.28,0.0002,2]
[371525501,1752337876121,-460.0,0.0002,2]
[371525502,1752337876131,-504.26,0.0002,2]
[371525503,1752337876140,-460.0,0.0002,2]
[371525504,1752337876150,-460.0,0.0002,2]
[371525505,1752337876160,-588.15,0.0002,2]
[371525506,1752337876169,-460.0,0.0002,2]
[371525507,1752337876179,-992.64,0.0002,2]
[371525508,1752337876189,-289.846167,0.0002,2]
[371525509,1752337876199,-460.0,0.0002,2]
[371525510,1752337876209,-289.846167,0.0002,2]
[371525511,1752337876218,-460.0,0.0002,2]
[371525512,1752337876228,-460.0,0.0002,2]
[371525513,1752337876238,-1839.91,0.0002,2]
[371525514,1752337876247,-460.0,0.0002,2]
[371525515,1752337876257,-927.9,0.0002,2]
[371525516,1752337876266,-526.46,0.0002,2]
[371525517,1752337876277,-1650.17,0.0002,2]
[371525518,1752337876289,-460.0,0.0002,2]
[371525519,1752337876299,-1069.15,0.0002,2]
[371525520,1752337876309,-460.0,0.0002,2]
[371525521,1752337876319,-578.23,0.0002,2]
[371525522,1752337876328,-3354.98,0.0002,2]
[371525523,1752337876338,-460.0,0.0002,2]
[371525524,1752337876348,-818.44,0.0002,2]
[371525525,1752337876358,-998.44,0.0002,2]
[371525526,1752337876367,-4494.11,0.0002,2]
[371525527,1752337876376,-2099.31,0.0002,2]
[371525528,1752337876386,-460.0,0.0002,2]
[371525529,1752337876395,-1003.4,0.0002,2]
[371525530,1752337876405,-460.0,0.0002,2]
[371525531,1752337876414,-485.45,0.0002,2]
[371525532,1752337876424,-515.64,0.0002,2]
[371525533,1752337876434,-1931.86,0.0002,2]
[371525534,1752337876443,-346.79015773,0.0002,2]
[371525535,1752337876453,-460.0,0.0002,2]
[371525536,1752337876462,-515.47192529,0.0002,2]
[371525537,1752337876472,-460.0,0.0002,2]
[371525538,1752337876481,-3383.5,0.0002,2]
[371525539,1752337876491,-470.33,0.0002,2]
[371525540,1752337876501,-460.0,0.0002,2]
[371525541,1752337876510,-460.0,0.0002,2]
[371525542,1752337876520,-11218.70515284,0.0002,2]
[371525543,1752337876529,-14327.64330798,0.0002,2]
[371525544,1752337876538,-1827.3,0.0002,2]
[371525545,1752337876548,-3190.41222963,0.0002,2]
[371525546,1752337876557,-804.37,0.0002,2]
[371525547,1752337876567,-2119.51,0.0002,2]
[371525548,1752337876576,-17512.41079684,0.0002,20]
[371525549,1752337876586,-362.2537436,0.0002,2]
[371525550,1752337876596,-40000.0,0.0002,2]
[371525551,1752337876605,-839.50569351,0.0002,2]
[371525552,1752337876614,-460.0,0.0002,2]
[371525553,1752337876624,-3481.70383816,0.0002,2]
[371525554,1752337876635,-690.3,0.0002,2]
[371525555,1752337876647,-460.0,0.0002,2]
[371525556,1752337876657,-460.0,0.0002,2]
[371525557,1752337876667,-460.0,0.0002,2]
[371525558,1752337876676,-2183.81486075,0.0002,2]
[371525559,1752337876685,-151.0,0.0002,2]
[371525560,1752337876694,-717.39,0.0002,2]
[371525561,1752337876704,-834.1,0.0002,2]
[371525562,1752337876714,-677.77,0.0002,2]
[371525563,1752337876724,-460.0,0.0002,2]
[371525564,1752337876734,-1548.29,0.0002,2]
[371525565,1752337876745,-638.57,0.0002,2]
[371525566,1752337876754,-460.0,0.0002,2]
[371525567,1752337876764,-1037.74,0.0002,2]
[371525568,1752337876774,-502.37,0.0002,2]
[371525569,1752337876784,-633.77,0.0002,2]
[371525570,1752337876794,-504.46,0.0002,2]
[371525571,1752337876804,-1078.9,0.0002,2]
[371525572,1752337876814,-535.14,0.0002,2]
[371525573,1752337876824,-5267.62,0.0002,2]
[371525574,1752337876834,-432.78818793,0.0002,2]
[371525575,1752337876844,-460.0,0.0002,2]
[371525576,1752337876853,-460.0,0.0002,2]
[371525577,1752337876863,-1776.53,0.0002,2]
[371525578,1752337876873,-460.0,0.0002,2]
[371525579,1752337876883,-476.19,0.0002,2]
[371525580,1752337876892,-1202.71,0.0002,2]
[371525581,1752337876902,-3134.5,0.0002,2]
[371525582,1752337876912,-559.61,0.0002,2]
[371525583,1752337876922,-460.0,0.0002,2]
[371525584,1752337876932,-483.57,0.0002,2]
[371525585,1752337876942,-5000.0,0.00020002,2]
[371525586,1752337876952,-455.23741542,0.00020034,4]
[371525587,1752337876962,-2648.42648793,0.00020035,2]
[371525588,1752337876971,-2654.34677328,0.00020072,2]
[371525589,1752337876981,-455.23741542,0.00020223,4]
[371525590,1752337876992,-2126.11862193,0.0002026,2]
[371525591,1752337877003,-151.0,0.00020273,2]
[371525592,1752337877013,-151.0,0.00020273,2]
[371525593,1752337877022,-151.0,0.00020273,2]
[371525594,1752337877032,-151.0,0.00020273,2]
[371525595,1752337877042,-151.0,0.00020273,2]
[371525596,1752337877051,-151.0,0.00020273,2]
[371525597,1752337877061,-460.0,0.00020273,2]
[371525598,1752337877070,-460.0,0.00020273,2]
[371525599,1752337877079,-535.97,0.00020273,2]
[371525600,1752337877088,-460.0,0.00020273,2]
[371525601,1752337877098,-460.0,0.00020273,2]
[371525602,1752337877107,-544.05,0.00020273,2]
[371525603,1752337877116,-460.0,0.00020273,2]
[371525604,1752337877126,-460.0,0.00020273,2]
[371525605,1752337877136,-460.92,0.00020273,2]
[371525606,1752337877146,-754.1,0.00020273,2]
[371525607,1752337877156,-460.0,0.00020273,2]
[371525608,1752337877166,-460.0,0.00020273,2]
[371525609,1752337877176,-560.396726,0.00020273,2]
[371525610,1752337877186,-560.396726,0.00020273,2]
[371525611,1752337877196,-874.82,0.00020273,2]
[371525612,1752337877205,-460.0,0.00020273,2]
[371525613,1752337877216,-934.28,0.00020273,2]
[371525614,1752337877226,-460.0,0.00020273,2]
[371525615,1752337877236,-504.26,0.00020273,2]
[371525616,1752337877245,-460.0,0.00020273,2]
[371525617,1752337877256,-460.0,0.00020273,2]
[371525618,1752337877266,-588.15,0.00020273,2]
[371525619,1752337877277,-460.0,0.00020273,2]
[371525620,1752337877288,-385.980913,0.00020273,2]
[371525621,1752337877297,-992.64,0.00020273,2]
[371525622,1752337877306,-385.980913,0.00020273,2]
[371525623,1752337877315,-460.0,0.00020273,2]
[371525624,1752337877326,-460.0,0.00020273,2]
[371525625,1752337877335,-460.0,0.00020273,2]
[371525626,1752337877345,-1839.91,0.00020273,2]
[371525627,1752337877357,-460.0,0.00020273,2]
[371525628,1752337877367,-927.9,0.00020273,2]
[371525629,1752337877376,-151.0,0.00020273,2]
[371525630,1752337877385,-526.46,0.00020273,2]
[371525631,1752337877395,-1650.17,0.00020273,2]
[371525632,1752337877404,-460.0,0.00020273,2]
[371525633,1752337877413,-1069.15,0.00020273,2]
[371525634,1752337877423,-460.0,0.00020273,2]
[371525635,1752337877432,-151.0,0.00020273,2]
[371525636,1752337877443,-578.23,0.00020273,2]
[371525637,1752337877453,-3354.98,0.00020273,2]
[371525638,1752337877462,-460.0,0.00020273,2]
[371525639,1752337877472,-818.44,0.00020273,2]
[371525640,1752337877482,-998.44,0.00020273,2]
[371525641,1752337877491,-4494.11,0.00020273,2]
[371525642,1752337877501,-2099.31,0.00020273,2]
[371525643,1752337877510,-460.0,0.00020273,2]
[371525644,1752337877519,-1003.4,0.00020273,2]
[371525645,1752337877529,-174.85374271,0.00020273,2]
[371525646,1752337877538,-485.45,0.00020273,2]
[371525647,1752337877548,-515.64,0.00020273,2]
[371525648,1752337877558,-1931.86,0.00020273,2]
[371525649,1752337877568,-460.0,0.00020273,2]
[371525650,1752337877578,-527.530373,0.00020273,2]
[371525651,1752337877588,-527.530373,0.00020273,2]
[371525652,1752337877597,-460.0,0.00020273,2]
[371525653,1752337877607,-3383.5,0.00020273,2]
[371525654,1752337877616,-470.33,0.00020273,2]
[371525655,1752337877626,-460.0,0.00020273,2]
[371525656,1752337877637,-253.510333,0.00020273,2]
[371525657,1752337877646,-543.93316443,0.00020273,2]
[371525658,1752337877657,-151.0,0.00020273,2]
[371525659,1752337877668,-253.510333,0.00020273,2]
[371525660,1752337877679,-151.0,0.00020273,2]
[371525661,1752337877688,-1827.3,0.00020273,2]
[371525662,1752337877698,-804.37,0.00020273,2]
[371525663,1752337877708,-2119.51,0.00020273,2]
[371525664,1752337877718,-460.0,0.00020273,2]
[371525665,1752337877729,-690.3,0.00020273,2]
[371525666,1752337877822,-460.0,0.00020273,2]
[371525667,1752337877840,-460.0,0.00020273,2]
[371525668,1752337877851,-460.0,0.00020273,2]
[371525669,1752337877860,-717.39,0.00020273,2]
[371525670,1752337877870,-834.1,0.00020273,2]
[371525671,1752337877879,-677.77,0.00020273,2]
[371525672,1752337877889,-460.0,0.00020273,2]
[371525673,1752337877899,-1548.29,0.00020273,2]
[371525674,1752337877908,-154.097692,0.00020273,2]
[371525675,1752337877918,-638.57,0.00020273,2]
[371525676,1752337877928,-460.0,0.00020273,2]
[371525677,1752337877937,-1037.74,0.00020273,2]
[371525678,1752337877946,-502.37,0.00020273,2]
[371525679,1752337877956,-633.77,0.00020273,2]
[371525680,1752337877965,-504.46,0.00020273,2]
[371525681,1752337877976,-1078.9,0.00020273,2]
[371525682,1752337877985,-535.14,0.00020273,2]
[371525683,1752337877995,-5267.62,0.00020273,2]
[371525684,1752337878004,-460.0,0.00020273,2]
[371525685,1752337878013,-460.0,0.00020273,2]
[371525686,1752337878023,-1776.53,0.00020273,2]
[371525687,1752337878033,-460.0,0.00020273,2]
[371525688,1752337878043,-476.19,0.00020273,2]
[371525689,1752337878053,-1202.71,0.00020273,2]
[371525690,1752337878063,-3134.5,0.00020273,2]
[371525691,1752337878072,-559.61,0.00020273,2]
[371525692,1752337878082,-460.0,0.00020273,2]
[371525693,1752337878091,-483.57,0.00020273,2]
[371525694,1752337878101,-2654.34677328,0.00020314,3]
[371525695,1752337878110,-741.754,0.00020328,2]
[371525696,1752337878120,-178.092,0.00020328,2]
[371525697,1752337878129,-30983.65,0.000204,2]
[371525698,1752337878138,-4624.63,0.000204,2]
[371525699,1752337878148,-151.0,0.000204,2]
[371525700,1752337878157,-151.0,0.000204,2]
[371525701,1752337878167,-151.0,0.000204,2]
[371525702,1752337878176,-455.23741542,0.00020412,4]
[371525703,1752337878187,-1469.81590477,0.00020546,2]
[371525704,1752337878201,-151.0,0.00020547,2]
[371525705,1752337878211,-460.0,0.00020547,2]
[371525706,1752337878220,-460.0,0.00020547,2]
[371525707,1752337878230,-535.97,0.00020547,2]
[371525708,1752337878239,-522.63704269,0.00020547,2]
[371525709,1752337878249,-460.0,0.00020547,2]
[371525710,1752337878259,-544.05,0.00020547,2]
[371525711,1752337878269,-460.0,0.00020547,2]
[371525712,1752337878281,-460.0,0.00020547,2]
[371525713,1752337878291,-460.92,0.00020547,2]
[371525714,1752337878300,-754.1,0.00020547,2]
[371525715,1752337878310,-151.983486,0.00020547,2]
[371525716,1752337878319,-151.0,0.00020547,2]
[371525717,1752337878330,-464.42978,0.00020547,2]
[371525718,1752337878340,-460.0,0.00020547,2]
[371525719,1752337878351,-464.42978,0.00020547,2]
[371525720,1752337878361,-460.0,0.00020547,2]
[371525721,1752337878371,-874.82,0.00020547,2]
[371525722,1752337878381,-460.0,0.00020547,2]
[371525723,1752337878390,-934.28,0.00020547,2]
[371525724,1752337878400,-460.0,0.00020547,2]
[371525725,1752337878410,-151.0,0.00020547,2]